bitfinex/quotes_ETHUSD_20250806
["timestamp","ask_amount","ask_price","bid_price","bid_amount"]
[1754473271985,31.25832266,3627.0,3626.9,0.002]
[1754473274728,34.36882466,3627.0,3626.9,0.002]
[1754473276034,37.68182466,3627.0,3626.9,0.002]
[1754473284539,68.01639302,3627.0,3626.9,1e-08]
[1754473284860,68.01639302,3627.0,3626.5,0.002]
[1754473284861,3.30740362,3626.6,3626.5,0.002]
[1754473285064,31.85662675,3626.6,3626.5,1e-08]
[1754473285423,6.30770779,3626.2,3626.1,1e-08]
[1754473285764,64.11933092,3626.2,3626.1,1e-08]
[1754473286151,64.36746192,3626.2,3626.1,1e-08]
[1754473287166,64.5053737,3626.2,3626.1,1e-08]
[1754473290664,62.3993737,3626.2,3626.1,1e-08]
[1754473290866,64.5053737,3626.2,3626.1,1e-08]
[1754473291253,8.40583879,3626.2,3626.1,1e-08]
[1754473291462,10.40130779,3626.2,3626.1,1e-08]
[1754473291675,10.95130779,3626.2,3626.1,1e-08]
[1754473291869,11.08871798,3626.2,3626.1,1e-08]
[1754473292835,8.98271798,3626.2,3626.1,1e-08]
[1754473293035,8.29530779,3626.2,3626.1,1e-08]
[1754473293369,7.6466,3626.2,3626.1,1e-08]
[1754473294774,5.5376,3626.2,3626.1,1e-08]
[1754473295086,4.6466,3626.2,3626.1,1e-08]
[1754473295594,7.6466,3626.2,3626.1,1e-08]
[1754473296782,10.40430779,3626.2,3626.1,1e-08]
[1754473297080,7.6466,3626.2,3626.1,1e-08]
[1754473298658,7.6456,3626.2,3626.1,1e-08]
[1754473299498,4.6446,3626.2,3626.1,3.30957011]
[1754473299703,0.1376,3626.2,3626.1,3.30957011]
[1754473299860,0.1376,3626.8,3626.5,2.75747056]
[1754473300058,2.107,3626.7,3626.5,2.75747056]
[1754473300266,4.507,3626.7,3626.6,2.75740362]
[1754473300560,4.507,3626.7,3626.5,2.75745665]
[1754473301283,4.507,3626.7,3626.6,2.75740362]
[1754473301790,2.107,3626.7,3626.6,2.75740362]
[1754473301959,0.1376,3626.8,3626.7,2.75732759]
[1754473302154,0.001,3627.0,3626.9,2.75717554]
[1754473302394,0.001,3627.0,3626.9,2.78474729]
[1754473302395,2.111,3627.0,3626.9,2.78474729]
[1754473302673,2.111,3627.0,3626.9,2.89477554]
[1754473302876,2.112,3627.0,3626.9,2.89477554]
[1754473303077,2.112,3627.0,3626.9,5.6234374]
[1754473304735,2.112,3627.0,3626.6,0.55148923]
[1754473305017,2.112,3627.0,3626.2,0.1376]
[1754473305018,0.1376,3626.7,3626.2,0.1376]
[1754473305205,2.113,3626.6,3626.5,2.75741151]
[1754473306032,2.5376,3626.7,3626.5,2.75741151]
[1754473306033,2.5376,3626.7,3626.6,2.75740362]
[1754473306212,2.117,3626.7,3626.6,2.75740362]
[1754473306397,0.001,3627.0,3626.9,2.75717554]
[1754473306596,2.118,3627.0,3626.9,2.75717554]
[1754473306906,2.118,3627.0,3626.9,2.89477554]
[1754473308306,2.118,3627.0,3626.9,2.75717554]
[1754473309415,2.118,3627.0,3626.8,2.75723833]
[1754473309995,2.118,3627.0,3626.5,2.75747915]
[1754473310198,0.1376,3626.7,3626.6,2.75740362]
[1754473312726,0.1376,3626.7,3626.5,2.75744794]
[1754473313123,0.1376,3626.7,3626.6,2.75740362]
[1754473313293,2.5376,3626.7,3626.6,2.75740362]
[1754473314128,2.5376,3626.7,3626.5,2.7574589]
[1754473315142,2.5376,3626.7,3626.4,2.75753522]
[1754473315332,2.5376,3626.7,3626.5,2.75747483]
[1754473315633,2.5376,3626.7,3626.2,2.89530641]
[1754473315799,2.5376,3626.7,3626.3,2.75763174]
[1754473315999,2.5376,3626.7,3626.2,2.75770641]
[1754473316200,2.5376,3626.7,3626.0,0.1376]
[1754473316201,2.5376,3626.7,3626.1,2.75777602]
[1754473316535,0.1376,3626.3,3626.2,2.75770701]
[1754473316697,2.2526,3626.3,3626.2,2.75770701]
[1754473319942,2.2526,3626.3,3626.1,2.75773402]
[1754473320514,2.4,3626.2,3626.1,2.75773402]
[1754473321008,2.4,3626.2,3626.1,3.18965444]
[1754473321210,4.513,3626.2,3626.1,3.18965444]
[1754473321465,2.113,3626.2,3626.1,3.18965444]
[1754473321822,0.1376,3626.4,3626.3,2.75763174]
[1754473322045,2.113,3626.4,3626.1,2.75775188]
[1754473322246,2.2506,3626.4,3626.1,1e-08]
[1754473322455,2.2506,3626.4,3626.3,2.75763174]
[1754473323061,4.6506,3626.4,3626.3,2.75763174]
[1754473324152,4.6506,3626.4,3626.2,2.75767543]
[1754473325070,4.6506,3626.4,3626.1,1e-08]
[1754473325278,4.513,3626.4,3626.1,2.75776921]
[1754473325427,2.5376,3626.4,3626.3,2.75763174]
[1754473325623,4.6516,3626.4,3626.3,2.75763174]
[1754473327461,4.6516,3626.4,3626.2,2.75767485]
[1754473327945,4.6516,3626.4,3626.1,2.75776752]
[1754473329101,4.6516,3626.4,3626.1,1e-08]
[1754473329255,4.514,3626.4,3626.1,1e-08]
[1754473329608,0.1376,3626.2,3626.1,1e-08]
[1754473331097,2.5376,3626.2,3626.1,1e-08]
[1754473332186,4.512,3626.2,3626.1,2.75778385]
[1754473333475,4.512,3626.2,3626.1,1e-08]
[1754473335586,4.512,3626.2,3626.1,2.75778385]
[1754473336001,2.112,3626.2,3626.1,2.75778385]
[1754473336704,2.112,3626.2,3626.1,1e-08]
[1754473336861,2.2496,3626.2,3626.1,1e-08]
[1754473337571,5.55730779,3626.2,3626.1,1e-08]
[1754473340063,5.42070779,3626.2,3626.1,1e-08]
[1754473340258,5.55830779,3626.2,3626.1,1e-08]
[1754473341179,8.55830779,3626.2,3626.1,1e-08]
[1754473342598,5.113,3626.2,3626.1,1e-08]
[1754473342791,0.001,3626.4,3626.1,1e-08]
[1754473343101,2.115,3626.3,3626.1,1e-08]
[1754473344293,2.75770779,3626.2,3626.1,1e-08]
[1754473344598,2.115,3626.3,3626.1,1e-08]
[1754473345139,4.872648,3626.3,3626.1,1e-08]
[1754473345495,2.115,3626.3,3626.1,1e-08]
[1754473347128,3.30770779,3626.2,3626.1,1e-08]
[1754473352867,3.44530779,3626.2,3626.1,1e-08]
[1754473354263,8.84530779,3626.2,3626.1,1e-08]
[1754473354759,8.95584579,3626.2,3626.1,1e-08]
[1754473355079,38.95584579,3626.2,3626.1,1e-08]
[1754473356678,8.40584579,3626.2,3626.1,1e-08]
[1754473356850,10.51984579,3626.2,3626.1,1e-08]
[1754473357052,11.06984579,3626.2,3626.1,1e-08]
[1754473361002,11.07084579,3626.2,3626.1,1e-08]
[1754473362898,8.95684579,3626.2,3626.1,1e-08]
[1754473363203,11.07084579,3626.2,3626.1,1e-08]
[1754473364899,10.95930779,3626.2,3626.1,1e-08]
[1754473367108,8.84630779,3626.2,3626.1,1e-08]
[1754473367615,10.95930779,3626.2,3626.1,1e-08]
[1754473369399,11.34482787,3626.2,3626.1,1e-08]
[1754473369810,29.62279068,3625.9,3625.8,1e-08]
[1754473370008,31.87539068,3625.9,3625.8,1e-08]
[1754473370480,34.27539068,3625.9,3625.8,1e-08]
[1754473372197,0.55,3625.6,3625.3,1e-08]
[1754473372392,29.62317104,3625.4,3625.3,1e-08]
[1754473372603,59.76077104,3625.4,3625.3,1e-08]
[1754473372781,62.16077104,3625.4,3625.3,1e-08]
[1754473373416,6.30846849,3625.2,3625.1,1e-08]
[1754473373580,11.87706849,3625.2,3625.1,1e-08]
[1754473373983,12.01789288,3625.2,3625.1,1e-08]
[1754473374315,14.41789288,3625.2,3625.1,1e-08]
[1754473375313,44.41789288,3625.2,3625.1,1e-08]
[1754473375515,41.75089288,3625.2,3625.1,1e-08]
[1754473375701,67.1817476,3625.2,3625.1,1e-08]
[1754473375910,67.7317476,3625.2,3625.1,1e-08]
[1754473377231,37.59092321,3625.2,3625.1,1e-08]
[1754473377399,35.47492321,3625.2,3625.1,1e-08]
[1754473377600,37.59392321,3625.2,3625.1,1e-08]
[1754473377919,35.47492321,3625.2,3625.1,1e-08]
[1754473378219,37.59392321,3625.2,3625.1,1e-08]
[1754473382218,12.16006849,3625.2,3625.1,1e-08]
[1754473382420,14.27806849,3625.2,3625.1,1e-08]
[1754473383984,12.16006849,3625.2,3625.1,1e-08]
[1754473384190,14.27806849,3625.2,3625.1,1e-08]
[1754473392553,14.27506849,3625.2,3625.1,1e-08]
[1754473397712,14.27306849,3625.2,3625.1,1e-08]
[1754473398384,12.16006849,3625.2,3625.1,1e-08]
[1754473398562,14.27306849,3625.2,3625.1,1e-08]
[1754473404437,14.27306849,3625.2,3625.1,0.00200001]
[1754473406474,12.16006849,3625.2,3625.1,0.00200001]
[1754473406670,14.27206849,3625.2,3625.1,0.00200001]
[1754473407378,13.72106849,3625.2,3625.1,0.00200001]
[1754473407539,14.27106849,3625.2,3625.1,0.00200001]
[1754473408962,37.58592321,3625.2,3625.1,0.00200001]
[1754473409599,35.47492321,3625.2,3625.1,0.00200001]
[1754473409778,37.58692321,3625.2,3625.1,0.00200001]
[1754473411189,14.27206849,3625.2,3625.1,0.00200001]
[1754473411395,13.72306849,3625.2,3625.1,0.00200001]
[1754473411698,3.314,3625.2,3625.1,2.7605446]
[1754473411898,5.429,3625.2,3625.1,3.06159906]
[1754473415795,5.429,3625.2,3625.1,0.30305447]
[1754473416908,5.429,3625.2,3625.1,3.06159906]
[1754473417125,5.429,3625.2,3625.1,0.30305447]
[1754473417441,5.429,3625.2,3625.1,3.06159906]
[1754473417853,5.429,3625.2,3625.1,0.30305447]
[1754473418129,5.429,3625.2,3625.1,3.06159906]
[1754473420995,5.429,3625.2,3625.1,0.30305447]
[1754473421310,5.429,3625.2,3625.1,0.00200001]
[1754473421831,7.829,3625.2,3625.1,0.00200001]
[1754473422734,7.829,3625.2,3625.1,2.7605446]
[1754473422920,7.829,3625.2,3625.1,0.00200001]
[1754473423991,7.829,3625.2,3625.1,2.7605446]
[1754473424221,7.829,3625.2,3625.1,3.33746188]
[1754473425169,5.427,3625.2,3625.1,3.33746188]
[1754473425758,5.427,3625.2,3625.1,0.57891729]
[1754473426341,5.427,3625.2,3625.1,0.00200001]
[1754473427528,5.427,3625.2,3625.1,2.7605446]
[1754473428057,3.314,3625.2,3625.1,2.7605446]
[1754473428258,5.426,3625.2,3625.1,2.7605446]
[1754473433574,5.424,3625.2,3625.1,2.8981446]
[1754473433776,5.424,3625.2,3625.1,3.48882176]
[1754473436602,3.314,3625.2,3625.1,3.48882176]
[1754473436803,0.001,3625.3,3625.2,2.75846849]
[1754473437097,2.111,3625.3,3625.2,2.78605317]
[1754473437301,2.111,3625.3,3625.2,2.75846849]
[1754473437499,2.111,3625.3,3625.2,3.65906022]
[1754473437659,2.111,3625.3,3625.2,3.79666022]
[1754473437660,0.001,3625.3,3625.2,3.79666022]
[1754473437998,2.11,3625.3,3625.2,3.79666022]
[1754473442176,2.11,3625.3,3625.2,3.65906022]
[1754473442498,2.11,3625.3,3625.2,2.75846849]
[1754473446874,2.109,3625.3,3625.2,2.75846849]
[1754473452685,0.001,3625.3,3625.2,2.75846849]
[1754473452918,2.108,3625.3,3625.2,2.75846849]
[1754473454720,2.108,3625.3,3625.2,2.75846849]
[1754473455532,2.107,3625.3,3625.2,2.75846849]
[1754473455710,2.107,3625.3,3625.2,3.7521298]
[1754473456506,0.001,3625.3,3625.2,3.7521298]
[1754473456707,0.001,3625.3,3625.2,3.77971448]
[1754473456883,0.001,3625.3,3625.2,3.7521298]
[1754473458586,0.001,3625.3,3625.2,8.0321298]
[1754473458887,1e-08,3625.3,3625.2,8.0321298]
[1754473459901,1e-08,3625.3,3625.2,3.7521298]
[1754473460112,1e-08,3625.3,3625.2,6.77971448]
[1754473460421,1e-08,3625.3,3625.2,6.7521298]
[1754473460793,1e-08,3625.3,3625.2,8.8571298]
[1754473461814,1e-08,3625.3,3625.2,9.4071298]
[1754473464138,1e-08,3625.3,3625.2,6.7521298]
[1754473466948,1e-08,3625.3,3625.2,11.0321298]
[1754473470363,1e-08,3625.3,3625.2,13.2727298]
[1754473472423,1e-08,3625.3,3625.2,11.1697298]
[1754473472623,1e-08,3625.3,3625.2,13.2727298]
[1754473473255,1e-08,3625.3,3625.2,13.3832068]
[1754473474950,1e-08,3625.7,3625.6,26.07301888]
[1754473475136,1e-08,3625.7,3625.6,31.80168074]
[1754473475465,1e-08,3625.7,3625.6,31.93928074]
[1754473475760,1e-08,3625.7,3625.6,36.21928074]
[1754473476256,1e-08,3625.7,3625.6,12.90442602]
[1754473484954,1e-08,3625.7,3625.6,36.21928074]
[1754473486082,1e-08,3625.7,3625.6,12.90442602]
[1754473487350,1e-08,3625.7,3625.6,7.17576416]
[1754473487560,1e-08,3625.7,3625.6,5.89576416]
[1754473493581,1e-08,3625.7,3625.6,10.17576416]
[1754473500901,1e-08,3625.7,3625.6,33.49061888]
[1754473501802,1e-08,3625.7,3625.6,10.17576416]
[1754473502184,1e-08,3625.7,3625.6,11.74500462]
[1754473505300,1e-08,3625.7,3625.6,7.46500462]
[1754473506413,1e-08,3625.7,3625.6,2.89576416]
[1754473511280,1e-08,3625.7,3625.6,7.17576416]
[1754473511814,1e-08,3625.7,3625.6,2.89776416]
[1754473512010,1e-08,3625.7,3625.6,10.17776416]
[1754473512921,0.001,3626.4,3625.6,10.17776416]
[1754473512922,0.001,3626.4,3626.3,2.75763174]
[1754473513121,0.001,3626.4,3626.3,3.3091733]
[1754473513281,0.001,3626.4,3626.3,3.4467733]
[1754473517979,3.314,3627.2,3626.4,2.7575557]
[1754473518238,3.314,3627.2,3626.7,2.75732759]
[1754473518637,3.314,3627.2,3626.7,2.89492759]
[1754473518956,3.314,3627.2,3626.7,4.46391721]
[1754473529031,6.07095078,3627.2,3626.7,0.1376]
[1754473529529,0.1386,3627.0,3626.6,2.7573547]
[1754473529758,2.102,3626.8,3626.6,2.7573547]
[1754473530145,2.102,3626.8,3626.7,2.75732759]
[1754473530341,2.102,3626.8,3626.6,2.75737016]
[1754473531675,2.102,3626.8,3626.7,2.75732759]
[1754473532035,2.102,3626.8,3626.7,2.89492759]
[1754473533472,2.102,3626.8,3626.7,0.1376]
[1754473533675,2.102,3626.8,3626.7,2.89492759]
[1754473535977,2.102,3626.8,3626.7,0.1376]
[1754473536181,2.102,3626.8,3626.7,2.89492759]
[1754473538587,2.102,3626.8,3626.7,0.1376]
[1754473538878,2.102,3626.8,3626.7,2.75732759]
[1754473543996,2.102,3626.8,3626.6,2.75738153]
[1754473545097,2.102,3626.8,3626.5,0.1376]
[1754473545306,2.102,3626.8,3626.3,0.002]
[1754473545307,2.75753809,3626.5,3626.3,0.002]
[1754473545508,0.1376,3626.5,3626.3,0.002]
[1754473545810,2.7575557,3626.4,3626.3,0.002]
[1754473545962,0.1376,3626.5,3626.3,0.002]
[1754473546463,4.8585557,3626.4,3626.3,0.002]
[1754473547694,2.101,3626.4,3626.3,0.002]
[1754473549017,7.2585557,3626.4,3626.3,0.002]
[1754473549312,7.8085557,3626.4,3626.3,0.002]
[1754473550012,31.12341042,3626.4,3626.3,0.002]
[1754473553784,34.12341042,3626.4,3626.3,0.002]
[1754473557048,2.7578599,3626.0,3625.9,0.002]
[1754473557244,34.48771462,3626.0,3625.9,0.002]
[1754473557544,34.62531462,3626.0,3625.9,0.002]
[1754473557844,37.02531462,3626.0,3625.9,0.002]
[1754473558039,37.57531462,3626.0,3625.9,0.002]
[1754473560246,35.47331462,3626.0,3625.9,0.002]
[1754473560410,37.57531462,3626.0,3625.9,0.002]
[1754473561336,35.47331462,3626.0,3625.9,0.002]
[1754473561539,37.27741676,3626.0,3625.9,0.002]
[1754473562741,67.27741676,3626.0,3625.9,0.002]
[1754473562933,67.66293684,3626.0,3625.9,0.002]
[1754473563130,3.30801202,3625.8,3625.7,0.002]
[1754473563329,8.54761202,3625.8,3625.7,0.002]
[1754473563727,10.94761202,3625.8,3625.7,0.002]
[1754473564341,11.05815702,3625.8,3625.7,0.002]
[1754473565212,10.94761202,3625.8,3625.7,0.002]
[1754473565641,8.84561202,3625.8,3625.7,0.002]
[1754473565812,10.94761202,3625.8,3625.7,0.002]
[1754473567348,8.84561202,3625.8,3625.7,0.002]
[1754473567513,34.26246674,3625.8,3625.7,0.002]
[1754473567914,8.84561202,3625.8,3625.7,0.002]
[1754473568115,10.94761202,3625.8,3625.7,0.002]
[1754473573243,8.84561202,3625.8,3625.7,0.002]
[1754473573552,5.5376,3625.8,3625.7,0.002]
[1754473573754,7.6396,3625.8,3625.7,0.002]
[1754473574324,5.2396,3625.8,3625.7,0.002]
[1754473574519,3.0,3625.9,3625.7,0.002]
[1754473574719,2.102,3625.8,3625.7,2.76008382]
[1754473574918,3.313,3626.0,3625.9,2.75793596]
[1754473575150,5.415,3626.0,3625.9,2.75793596]
[1754473575744,5.415,3626.0,3625.8,2.75798723]
[1754473576533,5.415,3626.0,3625.9,2.75793596]
[1754473577753,5.415,3626.0,3625.9,2.89553596]
[1754473578055,5.416,3626.0,3625.9,3.49031419]
[1754473579546,0.001,3626.0,3625.9,3.49031419]
[1754473579743,2.103,3626.0,3625.9,3.49031419]
[1754473581768,0.001,3626.0,3625.9,3.49031419]
[1754473582119,2.103,3626.0,3625.9,3.49031419]
[1754473590183,0.001,3626.0,3625.9,3.49031419]
[1754473590350,2.102,3626.0,3625.9,3.49031419]
[1754473590683,0.001,3626.0,3625.9,3.49031419]
[1754473590984,2.102,3626.0,3625.9,3.49031419]
[1754473592111,2.102,3626.0,3625.9,3.35271419]
[1754473593405,0.001,3626.0,3625.9,3.35271419]
[1754473593681,2.102,3626.0,3625.9,3.35271419]
[1754473596298,0.001,3626.0,3625.9,3.35271419]
[1754473596599,2.102,3626.0,3625.9,3.35271419]
[1754473597889,2.102,3626.0,3625.9,3.35271419]
[1754473598088,0.001,3626.0,3625.9,3.35271419]
[1754473598785,0.001,3626.0,3625.9,7.63271419]
[1754473599024,0.001,3626.0,3625.9,3.49031419]
[1754473599410,0.001,3626.0,3625.9,26.83274826]
[1754473599734,0.001,3626.4,3626.3,2.75763174]
[1754473599932,0.001,3627.2,3626.9,2.75717554]
[1754473600430,0.001,3627.2,3626.9,2.89477554]
[1754473608339,0.001,3627.2,3626.9,2.92234729]
[1754473608634,0.001,3627.4,3627.1,2.75702351]
[1754473608635,1e-08,3627.3,3627.1,2.75702351]
[1754473608835,1e-08,3627.4,3627.3,2.7568715]
[1754473609041,1e-08,3627.4,3627.3,2.78444021]
[1754473609336,1e-08,3627.5,3627.4,2.7567955]
[1754473610433,1e-08,3627.5,3627.4,2.8672095]
[1754473610734,1e-08,3627.5,3627.4,5.59587136]
[1754473611547,1e-08,3627.5,3627.4,8.59587136]
[1754473612049,1e-08,3627.5,3627.4,8.8065809]
[1754473619242,1e-08,3627.5,3627.4,8.59587136]
[1754473619559,1e-08,3627.5,3627.4,2.8672095]
[1754473619809,1e-08,3627.5,3627.4,2.92196345]
[1754473620519,1e-08,3627.5,3627.4,2.8943955]
[1754473623770,1e-08,3627.5,3627.4,7.1743955]
[1754473642606,1e-08,3627.5,3627.4,7.1763955]
[1754473642901,1e-08,3627.5,3627.4,8.3907646]
[1754473648906,1e-08,3627.6,3627.5,2.7567195]
[1754473653397,1e-08,3627.6,3627.5,7.0367195]
[1754473659201,1e-08,3627.6,3627.5,2.7567195]
[1754473659406,1e-08,3627.6,3627.5,5.7567195]
[1754473660135,1e-08,3627.6,3627.5,6.608271]
[1754473661444,1e-08,3627.6,3627.5,5.7567195]
[1754473662030,1e-08,3627.6,3627.5,2.7567195]
[1754473664248,1e-08,3627.6,3627.5,2.7587195]
[1754473669168,1e-08,3627.6,3627.5,2.8963195]
[1754473670665,1e-08,3627.6,3627.5,2.7587195]
[1754473670850,1e-08,3627.6,3627.5,3.4591132]
[1754473671054,1e-08,3627.6,3627.5,7.7391132]
[1754473677743,1e-08,3627.6,3627.5,7.6015132]
[1754473677965,1e-08,3627.6,3627.5,7.7391132]
[1754473679572,1e-08,3627.8,3627.7,2.75656752]
[1754473679901,1e-08,3627.8,3627.7,4.07929724]
[1754473680179,1e-08,3627.8,3627.7,4.21689724]
[1754473680478,0.001,3628.0,3627.9,2.75641555]
[1754473680479,1e-08,3628.0,3627.9,2.75641555]
[1754473680681,1e-08,3628.0,3627.9,7.03641555]
[1754473681048,1e-08,3628.0,3627.9,7.17401555]
[1754473681253,1e-08,3628.0,3627.9,9.90267741]
[1754473681452,1e-08,3628.2,3628.0,2.75633958]
[1754473681682,1e-08,3628.4,3628.3,2.75611167]
[1754473682165,1e-08,3628.4,3628.3,2.89371167]
[1754473682548,1e-08,3628.4,3628.3,3.00410567]
[1754473682748,0.1376,3629.6,3628.5,2.75595976]
[1754473683188,0.1376,3629.6,3628.5,2.89355976]
[1754473684359,2.7552387,3629.5,3628.5,2.89355976]
[1754473684558,0.1376,3629.3,3628.5,2.89355976]
[1754473687356,2.139,3629.9,3628.5,2.89355976]
[1754473687357,2.098,3629.5,3628.5,2.89355976]
[1754473687560,2.098,3629.5,3628.5,2.75595976]
[1754473687561,1e-08,3628.6,3628.5,2.75595976]
[1754473687761,1e-08,3628.6,3628.5,2.89355976]
[1754473687962,1e-08,3628.6,3628.5,5.62222162]
[1754473690801,1e-08,3628.6,3628.5,5.73260762]
[1754473692370,1e-08,3628.6,3628.5,8.73260762]
[1754473694296,1e-08,3628.6,3628.5,10.83060762]
[1754473695102,1e-08,3628.9,3628.8,2.75573192]
[1754473695303,1e-08,3628.9,3628.8,8.66994766]
[1754473695463,1e-08,3628.9,3628.8,8.80754766]
[1754473695869,1e-08,3628.9,3628.8,8.91792866]
[1754473696081,1e-08,3628.9,3628.8,8.80754766]
[1754473697909,1e-08,3628.9,3628.8,0.1376]
[1754473698080,2.7557778,3628.8,3628.3,0.1376]
[1754473698287,2.89348494,3628.6,3628.0,0.1376]
[1754473698494,0.1376,3628.4,3627.9,0.1376]
[1754473699393,0.1376,3628.4,3627.9,2.89401169]
[1754473699720,2.4,3628.3,3627.9,0.1376]
[1754473700090,2.4,3628.3,3627.9,2.89400975]
[1754473700722,2.4,3628.3,3627.9,0.1376]
[1754473700900,2.4,3628.3,3627.9,2.89401404]
[1754473701302,2.4,3628.3,3627.4,0.002]
[1754473701505,2.4,3628.3,3627.6,2.75659345]
[1754473701506,0.1376,3628.2,3627.6,2.75659345]
[1754473701782,0.1376,3628.2,3627.7,2.75652203]
[1754473701983,0.1376,3628.2,3627.6,0.1376]
[1754473702803,0.1376,3628.2,3627.6,2.89422555]
[1754473702985,2.89380743,3628.2,3627.6,0.1376]
[1754473703181,2.89380743,3628.2,3627.6,2.89423181]
[1754473703421,0.1376,3628.2,3627.6,2.89423181]
[1754473703804,0.1376,3628.2,3627.7,2.75655623]
[1754473704007,0.1376,3628.2,3627.6,0.1376]
[1754473704223,0.1376,3628.2,3627.8,2.75642009]
[1754473704724,2.098,3628.1,3627.7,2.75654797]
[1754473705114,2.098,3628.1,3627.8,2.75649102]
[1754473705428,2.098,3628.1,3627.7,2.75653898]
[1754473706134,2.098,3628.1,3627.8,2.75647959]
[1754473706556,2.098,3628.1,3627.7,2.75653651]
[1754473706857,2.098,3628.1,3627.8,2.75647698]
[1754473707859,2.098,3628.1,3627.8,0.002]
[1754473709655,2.098,3628.0,3627.8,0.002]
[1754473712839,3.30641555,3627.9,3627.8,0.002]
[1754473713034,3.44401555,3627.9,3627.8,0.002]
[1754473713238,5.84401555,3627.9,3627.8,0.002]
[1754473714560,8.84401555,3627.9,3627.8,0.002]
[1754473720170,8.95449555,3627.9,3627.8,0.002]
[1754473721053,11.05349555,3627.9,3627.8,0.002]
[1754473724093,34.36835027,3627.9,3627.8,0.002]
[1754473724295,34.25787027,3627.9,3627.8,0.002]
[1754473725109,5.89401555,3627.9,3627.8,0.002]
[1754473725284,0.1376,3627.9,3627.8,0.002]
[1754473725458,2.2366,3627.9,3627.8,0.002]
[1754473725663,2.2366,3627.9,3627.8,2.75849153]
[1754473725875,2.2366,3627.9,3627.8,0.002]
[1754473726078,2.2366,3627.9,3627.8,2.75849153]
[1754473726496,3.0,3628.5,3627.9,2.75639981]
[1754473726689,0.1376,3628.1,3627.9,2.75639981]
[1754473726891,2.099,3628.0,3627.9,2.75639981]
[1754473727763,0.1376,3628.1,3627.8,0.002]
[1754473727962,0.1376,3628.4,3627.9,0.1376]
[1754473728159,2.099,3628.3,3628.2,2.75612387]
[1754473728588,2.099,3628.3,3627.9,0.1376]
[1754473728888,2.099,3628.3,3627.8,0.002]
[1754473728889,3.30641555,3627.9,3627.8,0.002]
[1754473729081,5.40541555,3627.9,3627.8,0.002]
[1754473729614,28.72027027,3627.9,3627.8,0.002]
[1754473729764,31.72027027,3627.9,3627.8,0.002]
[1754473730396,34.12027027,3627.9,3627.8,0.002]
[1754473736822,40.95968701,3627.9,3627.8,0.002]
[1754473740146,3.55,3627.7,3626.2,0.1376]
[1754473740302,0.55,3627.1,3626.6,2.75739285]
[1754473740637,0.1376,3626.7,3626.4,2.75750038]
[1754473740831,2.099,3626.6,3626.4,2.75750038]
[1754473741634,2.099,3626.6,3626.5,2.75747966]
[1754473742255,2.099,3626.6,3626.3,0.002]
[1754473742736,2.099,3626.6,3626.4,2.75754498]
[1754473743738,2.099,3626.6,3626.5,2.75747966]
[1754473745640,2.099,3626.6,3626.5,3.32293859]
[1754473745813,2.099,3626.6,3626.5,3.46053859]
[1754473746141,2.099,3626.6,3626.5,3.46053743]
[1754473746904,2.099,3626.6,3626.5,0.70306723]
[1754473747406,2.099,3626.6,3626.5,3.46054689]
[1754473748345,0.1376,3627.3,3626.6,2.75740362]
[1754473748547,2.099,3627.2,3627.1,2.75702351]
[1754473749031,3.312,3627.6,3627.5,2.7567195]
[1754473749231,5.411,3627.6,3627.5,2.7567195]
[1754473749437,3.312,3627.6,3627.5,2.7567195]
[1754473749733,2.099,3627.6,3627.4,0.1376]
[1754473749946,2.099,3627.6,3626.9,0.1376]
[1754473749947,0.1376,3627.5,3626.9,0.1376]
[1754473750177,0.1376,3627.5,3627.0,2.75705045]
[1754473750551,0.1376,3627.5,3627.1,2.75701379]
[1754473750882,0.1376,3627.5,3627.3,2.7568452]
[1754473751450,2.4,3627.4,3627.3,2.7568452]
[1754473751983,0.1376,3627.5,3627.2,2.75694493]
[1754473752374,2.5376,3627.5,3627.2,2.75694493]
[1754473753747,2.099,3627.6,3626.6,2.75740362]
[1754473753955,2.099,3627.6,3627.2,2.89451983]
[1754473754356,2.099,3627.6,3627.2,0.1376]
[1754473754767,2.099,3627.6,3627.3,2.7568715]
[1754473754968,2.099,3627.6,3627.2,2.89452821]
[1754473755398,2.099,3627.6,3627.3,2.75686601]
[1754473755601,2.099,3627.6,3627.5,2.7567195]
[1754473755969,2.099,3627.6,3627.4,2.75676817]
[1754473756680,2.099,3627.6,3627.5,2.7567195]
[1754473757699,2.099,3627.6,3627.2,0.1376]
[1754473757900,2.4,3627.9,3627.5,0.1376]
[1754473758196,2.099,3627.8,3627.5,0.1376]
[1754473758402,2.099,3627.8,3627.6,2.75664351]
[1754473758878,2.099,3627.8,3627.7,2.75656752]
[1754473759079,2.099,3627.8,3627.6,2.7566245]
[1754473759501,2.4,3627.9,3627.7,2.75655468]
[1754473759705,2.099,3627.8,3627.7,2.75655468]
[1754473760091,2.099,3627.8,3627.6,2.75662075]
[1754473760493,2.099,3627.8,3627.7,2.75656752]
[1754473761002,2.099,3627.8,3627.6,2.75662016]
[1754473761168,2.099,3627.8,3627.5,0.1376]
[1754473762171,2.099,3627.8,3627.5,2.89431933]
[1754473762393,0.1376,3628.0,3627.7,2.75656752]
[1754473762592,2.098,3627.9,3627.8,2.75649153]
[1754473763196,2.098,3627.9,3627.8,2.89409153]
[1754473764728,0.1386,3628.5,3627.9,2.75637715]
[1754473764907,2.098,3628.4,3627.9,2.75637715]
[1754473765105,2.098,3628.3,3628.0,2.89391948]
[1754473765412,2.098,3628.3,3628.2,2.75618764]
[1754473765726,2.098,3628.3,3628.0,0.1376]
[1754473766091,2.098,3628.3,3628.1,2.7562636]
[1754473766321,0.1386,3628.5,3628.1,2.7562636]
[1754473766542,2.098,3628.4,3628.0,0.1376]
[1754473767115,2.098,3628.4,3628.0,2.89389449]